{"text_format":"3","workbook":"xlsx","n_sheets":1,"sheets":["ความดันโลหิตและระดับน้ำตาล"],"not_rendered":{"defined_names":9},"read":"whole","date_system":"1900"}

{"sheet":"ความดันโลหิตและระดับน้ำตาล","index":0,"n_rows":13,"n_cols":11,"rows_kept":13,"merged":[[0,1,4,3],[0,4,0,9],[1,4,1,6],[1,7,1,9]]}
[null,"ตัวติดตามความดันโลหิตและระดับน้ำตาล",null,null,"กำหนดค่ามาตราส่วนในเซลล์ E2 ถึง J5 ด้านล่าง"]
[{"$nulls":4},"ความดันโลหิต",null,null,"อัตราน้ำตาล"]
[{"$nulls":4},120,"ความดันโลหิตค่าบน",140,70,100,150]
[{"$nulls":4},80,"ความดันโลหิตค่าล่าง",90,"ต่ำ","ปกติ","สูง"]
[{"$nulls":4},"ความดันเป้าหมาย",null,"โทรหาแพทย์"]
[null,"วันที่","เวลา","เหตุการณ์","ความดันโลหิตค่าบน","ความดันโลหิตค่าล่าง","อัตราการเต้นของหัวใจ","น้ำตาล","ระดับ","สถานะ","หมายเหตุ"]
[null,{"$f":"TODAY()","v":"2022-08-08"},"06:00:00","ปลุก",129,79,72,55,{"$f":"ความดันโลหิตและระดับน้ำตาล[[#This Row],[น้ำตาล]]","v":55},{"$f":"IFERROR(IF(ความดันโลหิตและระดับน้ำตาล[[#This Row],[ระดับ]]=0,\"\",IF(ความดันโลหิตและระดับน้ำตาล[[#This Row],[ระดับ]]<=GLow,\"ต่ำ\",IF(AND(ความดันโลหิตและระดับน้ำตาล[[#This Row],[ระดับ]]>GLow,ความดันโลหิตและระดับน้ำตาล[[#This Row],[ระดับ]]<GHigh),\"ปกติ\",\"สูง\"))), \"\")","v":"ต่ำ"}]
[null,{"$f":"TODAY()","v":"2022-08-08"},"07:00:00","ก่อนอาหาร",120,80,74,70,{"$f":"ความดันโลหิตและระดับน้ำตาล[[#This Row],[น้ำตาล]]","v":70},{"$f":"IFERROR(IF(ความดันโลหิตและระดับน้ำตาล[[#This Row],[ระดับ]]=0,\"\",IF(ความดันโลหิตและระดับน้ำตาล[[#This Row],[ระดับ]]<=GLow,\"ต่ำ\",IF(AND(ความดันโลหิตและระดับน้ำตาล[[#This Row],[ระดับ]]>GLow,ความดันโลหิตและระดับน้ำตาล[[#This Row],[ระดับ]]<GHigh),\"ปกติ\",\"สูง\"))), \"\")","v":"ต่ำ"}]
[null,"2022-08-08","09:00:00","หลังอาหาร",133,80,75,75,{"$f":"ความดันโลหิตและระดับน้ำตาล[[#This Row],[น้ำตาล]]","v":75},{"$f":"IFERROR(IF(ความดันโลหิตและระดับน้ำตาล[[#This Row],[ระดับ]]=0,\"\",IF(ความดันโลหิตและระดับน้ำตาล[[#This Row],[ระดับ]]<=GLow,\"ต่ำ\",IF(AND(ความดันโลหิตและระดับน้ำตาล[[#This Row],[ระดับ]]>GLow,ความดันโลหิตและระดับน้ำตาล[[#This Row],[ระดับ]]<GHigh),\"ปกติ\",\"สูง\"))), \"\")","v":"ปกติ"}]
[null,"2022-08-08","10:00:00","BP เท่านั้น",143,91,75,190,{"$f":"ความดันโลหิตและระดับน้ำตาล[[#This Row],[น้ำตาล]]","v":190},{"$f":"IFERROR(IF(ความดันโลหิตและระดับน้ำตาล[[#This Row],[ระดับ]]=0,\"\",IF(ความดันโลหิตและระดับน้ำตาล[[#This Row],[ระดับ]]<=GLow,\"ต่ำ\",IF(AND(ความดันโลหิตและระดับน้ำตาล[[#This Row],[ระดับ]]>GLow,ความดันโลหิตและระดับน้ำตาล[[#This Row],[ระดับ]]<GHigh),\"ปกติ\",\"สูง\"))), \"\")","v":"สูง"}]
[null,"2022-08-08","12:00:00","ก่อนอาหาร",141,84,70,140,{"$f":"ความดันโลหิตและระดับน้ำตาล[[#This Row],[น้ำตาล]]","v":140},{"$f":"IFERROR(IF(ความดันโลหิตและระดับน้ำตาล[[#This Row],[ระดับ]]=0,\"\",IF(ความดันโลหิตและระดับน้ำตาล[[#This Row],[ระดับ]]<=GLow,\"ต่ำ\",IF(AND(ความดันโลหิตและระดับน้ำตาล[[#This Row],[ระดับ]]>GLow,ความดันโลหิตและระดับน้ำตาล[[#This Row],[ระดับ]]<GHigh),\"ปกติ\",\"สูง\"))), \"\")","v":"ปกติ"}]
[null,{"$f":"TODAY()","v":"2022-08-08"},"15:00:00","หลังอาหาร",132,80,68,90,{"$f":"ความดันโลหิตและระดับน้ำตาล[[#This Row],[น้ำตาล]]","v":90},{"$f":"IFERROR(IF(ความดันโลหิตและระดับน้ำตาล[[#This Row],[ระดับ]]=0,\"\",IF(ความดันโลหิตและระดับน้ำตาล[[#This Row],[ระดับ]]<=GLow,\"ต่ำ\",IF(AND(ความดันโลหิตและระดับน้ำตาล[[#This Row],[ระดับ]]>GLow,ความดันโลหิตและระดับน้ำตาล[[#This Row],[ระดับ]]<GHigh),\"ปกติ\",\"สูง\"))), \"\")","v":"ปกติ"},"รับประทานยา BP พร้อมอาหาร"]
[null,"ค่าเฉลี่ย",null,null,{"$f":"SUBTOTAL(101,ความดันโลหิตและระดับน้ำตาล[ความดันโลหิตค่าบน])","v":133},{"$f":"SUBTOTAL(101,ความดันโลหิตและระดับน้ำตาล[ความดันโลหิตค่าล่าง])","v":{"v":82.33333333333333,"d":"82"}},{"$f":"SUBTOTAL(101,ความดันโลหิตและระดับน้ำตาล[อัตราการเต้นของหัวใจ])","v":{"v":72.33333333333333,"d":"72"}},{"$f":"SUBTOTAL(101,ความดันโลหิตและระดับน้ำตาล[น้ำตาล])","v":{"v":103.33333333333333,"d":"103"}}]